[Event "Early-Titled-Tuesday-Blitz-April-23-2024"]
[Site "Chess.com"]
[Date "2024.04.23"]
[Round "1"]
[White "Sandstad"]
[Black "Shtembuliak"]
[Result "0-1"]
[WhiteElo "2482"]
[BlackElo "2851"]
[TimeControl "180+1"]
[EndTime "8:05:24 PDT"]
[Termination "Shtembuliak won by resignation"]

1. d4 {[%clk 0:03:00.9]} 1... Nf6 {[%clk 0:02:58.3]} 2. c4 {[%clk 0:03:00]} 2...
d6 {[%clk 0:02:58.3]} 3. Nc3 {[%clk 0:02:59.1]} 3... Bf5 {[%clk 0:02:58.4]} 4.
Nf3 {[%clk 0:02:55.2]} 4... g6 {[%clk 0:02:57.7]} 5. Nh4 {[%clk 0:02:55.1]} 5...
Bd7 {[%clk 0:02:57.2]} 6. e4 {[%clk 0:02:54.9]} 6... e5 {[%clk 0:02:57.7]} 7. d5
{[%clk 0:02:48.9]} 7... Nxe4 {[%clk 0:02:56.4]} 8. Nxe4 {[%clk 0:02:37.6]} 8...
Qxh4 {[%clk 0:02:55.9]} 9. Bd3 {[%clk 0:02:38.3]} 9... h6 {[%clk 0:02:46.4]} 10.
Qb3 {[%clk 0:02:31.7]} 10... b6 {[%clk 0:02:45]} 11. Bd2 {[%clk 0:01:14.6]}
11... f5 {[%clk 0:02:38.2]} 12. Nc3 {[%clk 0:01:14.7]} 12... Na6 {[%clk
0:02:32.6]} 13. Qc2 {[%clk 0:01:10.1]} 13... Nb4 {[%clk 0:02:27.8]} 14. Qb1
{[%clk 0:01:09.9]} 14... Nxd3+ {[%clk 0:02:25.2]} 15. Qxd3 {[%clk 0:01:10.8]}
15... Bg7 {[%clk 0:02:23.5]} 16. Nb5 {[%clk 0:01:02.4]} 16... Qd8 {[%clk
0:02:17.4]} 17. h4 {[%clk 0:01:00.5]} 17... a6 {[%clk 0:02:17.5]} 18. Nc3 {[%clk
0:01:00.5]} 18... O-O {[%clk 0:02:15.2]} 19. O-O-O {[%clk 0:00:58.9]} 19... b5
{[%clk 0:02:14.4]} 20. Rdg1 {[%clk 0:00:48.6]} 20... Qe8 {[%clk 0:02:00]} 21. f3
{[%clk 0:00:43.5]} 21... Rb8 {[%clk 0:01:43.5]} 22. g4 {[%clk 0:00:38]} 22... e4
{[%clk 0:01:43.4]} 23. fxe4 {[%clk 0:00:30.7]} 23... fxg4 {[%clk 0:01:43.5]} 24.
h5 {[%clk 0:00:29.4]} 24... g5 {[%clk 0:01:41.9]} 25. Ne2 {[%clk 0:00:23.2]}
25... Rf3 {[%clk 0:01:41.2]} 26. Qc2 {[%clk 0:00:22.7]} 26... bxc4 {[%clk
0:01:41]} 27. Bc3 {[%clk 0:00:20.8]} 27... Ba4 {[%clk 0:01:38.8]} 28. Qd2 {[%clk
0:00:20.1]} 28... Rd3 {[%clk 0:01:36.1]} 29. Qe1 {[%clk 0:00:19.8]} 29... Rd1+
{[%clk 0:01:36.2]} 30. Qxd1 {[%clk 0:00:19.8]} 30... Bxd1 {[%clk 0:01:36.8]} 31.
Rxd1 {[%clk 0:00:20.2]} 31... Qxe4 {[%clk 0:01:36]} 0-1

[Event "Early-Titled-Tuesday-Blitz-April-23-2024"]
[Site "Chess.com"]
[Date "2024.04.23"]
[Round "1"]
[White "Fernando_Offermann"]
[Black "mac0504"]
[Result "1-0"]
[WhiteElo "2454"]
[BlackElo "2743"]
[TimeControl "180+1"]
[EndTime "8:05:24 PDT"]
[Termination "Fernando_Offermann won by checkmate"]

1. Nf3 {[%clk 0:02:58.4]} 1... Nc6 {[%clk 0:02:59.9]} 2. d4 {[%clk 0:02:57.6]}
2... g6 {[%clk 0:03:00.4]} 3. e4 {[%clk 0:02:57.3]} 3... Bg7 {[%clk 0:03:00.6]}
4. h3 {[%clk 0:02:56]} 4... d5 {[%clk 0:03:01]} 5. exd5 {[%clk 0:02:56.2]} 5...
Qxd5 {[%clk 0:03:01.8]} 6. Nc3 {[%clk 0:02:56.7]} 6... Qd8 {[%clk 0:03:00.2]} 7.
d5 {[%clk 0:02:56.9]} 7... Nb4 {[%clk 0:02:56.9]} 8. Bc4 {[%clk 0:02:54.3]} 8...
Nf6 {[%clk 0:02:56.9]} 9. a3 {[%clk 0:02:52.5]} 9... Na6 {[%clk 0:02:56.6]} 10.
O-O {[%clk 0:02:52.8]} 10... O-O {[%clk 0:02:56.5]} 11. Qe2 {[%clk 0:02:53.1]}
11... Nc5 {[%clk 0:02:49.8]} 12. Bf4 {[%clk 0:02:51.6]} 12... Bf5 {[%clk
0:02:46.6]} 13. Nd4 {[%clk 0:02:50.9]} 13... Nfe4 {[%clk 0:02:23.2]} 14. Nxf5
{[%clk 0:02:50]} 14... gxf5 {[%clk 0:02:20.2]} 15. Nxe4 {[%clk 0:02:47.6]} 15...
Nxe4 {[%clk 0:02:19.3]} 16. c3 {[%clk 0:02:45.9]} 16... c6 {[%clk 0:01:59.7]}
17. dxc6 {[%clk 0:02:45.8]} 17... bxc6 {[%clk 0:02:00.1]} 18. Rad1 {[%clk
0:02:45.9]} 18... Qa5 {[%clk 0:01:57.1]} 19. f3 {[%clk 0:02:43.4]} 19... Qb6+
{[%clk 0:01:28]} 20. Kh2 {[%clk 0:02:41.8]} 20... Nd6 {[%clk 0:01:11.4]} 21. Ba2
{[%clk 0:02:37.6]} 21... Rfe8 {[%clk 0:01:07.1]} 22. Rd2 {[%clk 0:02:36.9]}
22... e5 {[%clk 0:00:27.1]} 23. Bg5 {[%clk 0:02:31.9]} 23... Qc7 {[%clk
0:00:13.7]} 24. Rfd1 {[%clk 0:02:31]} 24... Bf8 {[%clk 0:00:14.5]} 25. Bh4
{[%clk 0:02:30.7]} 25... f4 {[%clk 0:00:08.6]} 26. Bf2 {[%clk 0:02:27.8]} 26...
Rad8 {[%clk 0:00:02.5]} 27. Kh1 {[%clk 0:02:26.5]} 27... Nf5 {[%clk 0:00:02.9]}
28. Qe4 {[%clk 0:02:25.1]} 28... Ng3+ {[%clk 0:00:02.1]} 29. Bxg3 {[%clk
0:02:25.1]} 29... fxg3 {[%clk 0:00:02.8]} 30. Qg4+ {[%clk 0:02:25.6]} 30... Bg7
{[%clk 0:00:02.5]} 31. Qxg3 {[%clk 0:02:23.8]} 31... Rxd2 {[%clk 0:00:03.1]} 32.
Rxd2 {[%clk 0:02:24.7]} 32... Rd8 {[%clk 0:00:04]} 33. Qe1 {[%clk 0:02:22.5]}
33... Rxd2 {[%clk 0:00:03.7]} 34. Qxd2 {[%clk 0:02:23]} 34... h6 {[%clk
0:00:04.2]} 35. Qd3 {[%clk 0:02:22.1]} 35... Qb6 {[%clk 0:00:03.8]} 36. Qd2
{[%clk 0:02:19.6]} 36... Qc7 {[%clk 0:00:03.5]} 37. Bb1 {[%clk 0:02:19.1]} 37...
Qe7 {[%clk 0:00:03.5]} 38. Be4 {[%clk 0:02:19.2]} 38... Qc5 {[%clk 0:00:01.6]}
39. Qd8+ {[%clk 0:02:17.5]} 39... Bf8 {[%clk 0:00:02.2]} 40. Qf6 {[%clk
0:02:16.8]} 40... Qf2 {[%clk 0:00:01.7]} 41. Qf5 {[%clk 0:02:15.6]} 41... Qxb2
{[%clk 0:00:01.4]} 42. Qh7# {[%clk 0:02:15.2]} 1-0

[Event "Early-Titled-Tuesday-Blitz-April-23-2024"]
[Site "Chess.com"]
[Date "2024.04.23"]
[Round "1"]
[White "eagleclaw07"]
[Black "Slovineanu"]
[Result "1-0"]
[WhiteElo "2880"]
[BlackElo "2500"]
[TimeControl "180+1"]
[EndTime "8:05:26 PDT"]
[Termination "eagleclaw07 won by resignation"]

1. d4 {[%clk 0:03:00.9]} 1... Nf6 {[%clk 0:02:59.6]} 2. c4 {[%clk 0:03:01.5]}
2... e6 {[%clk 0:02:59.6]} 3. Nc3 {[%clk 0:03:02]} 3... d5 {[%clk 0:03:00.2]} 4.
cxd5 {[%clk 0:03:02.5]} 4... Nxd5 {[%clk 0:03:00.2]} 5. e4 {[%clk 0:03:01.6]}
5... Nxc3 {[%clk 0:03:00.1]} 6. bxc3 {[%clk 0:03:02.5]} 6... c5 {[%clk
0:03:00.7]} 7. Nf3 {[%clk 0:03:03.1]} 7... cxd4 {[%clk 0:03:00.8]} 8. cxd4
{[%clk 0:03:04]} 8... Bb4+ {[%clk 0:03:01.2]} 9. Bd2 {[%clk 0:03:04]} 9... Bxd2+
{[%clk 0:03:01.2]} 10. Qxd2 {[%clk 0:03:04.9]} 10... O-O {[%clk 0:03:01.4]} 11.
Bc4 {[%clk 0:03:04.7]} 11... Nd7 {[%clk 0:03:01.6]} 12. O-O {[%clk 0:03:04.8]}
12... b6 {[%clk 0:03:02.1]} 13. Rfe1 {[%clk 0:03:03.6]} 13... Bb7 {[%clk
0:03:02.1]} 14. Rad1 {[%clk 0:03:02.5]} 14... Rc8 {[%clk 0:03:02.5]} 15. Bb3
{[%clk 0:03:01.7]} 15... Re8 {[%clk 0:03:03.1]} 16. h4 {[%clk 0:03:01.2]} 16...
Nf6 {[%clk 0:02:55.8]} 17. Qf4 {[%clk 0:02:59.2]} 17... Qc7 {[%clk 0:02:56.2]}
18. Ne5 {[%clk 0:02:58]} 18... Re7 {[%clk 0:02:55.9]} 19. Re3 {[%clk 0:02:02.1]}
19... Nd7 {[%clk 0:02:54.7]} 20. Rg3 {[%clk 0:01:48.3]} 20... Nxe5 {[%clk
0:02:35.6]} 21. dxe5 {[%clk 0:01:49.2]} 21... Rd7 {[%clk 0:02:03.2]} 22. Rxd7
{[%clk 0:01:22.4]} 22... Qxd7 {[%clk 0:02:02.8]} 23. h5 {[%clk 0:01:22.9]} 23...
Qc6 {[%clk 0:01:46.1]} 24. Qf6 {[%clk 0:00:49]} 24... g6 {[%clk 0:01:24.7]} 25.
hxg6 {[%clk 0:00:47]} 25... hxg6 {[%clk 0:01:01.9]} 26. Rh3 {[%clk 0:00:46.3]}
1-0

[Event "Early-Titled-Tuesday-Blitz-April-23-2024"]
[Site "Chess.com"]
[Date "2024.04.23"]
[Round "1"]
[White "yaguigor"]
[Black "campochess"]
[Result "1-0"]
[WhiteElo "2604"]
[BlackElo "2156"]
[TimeControl "180+1"]
[EndTime "8:05:26 PDT"]
[Termination "yaguigor won by resignation"]

1. Nf3 {[%clk 0:02:59.2]} 1... c5 {[%clk 0:02:59.1]} 2. e4 {[%clk 0:02:58.7]}
2... Nc6 {[%clk 0:02:58.9]} 3. d4 {[%clk 0:02:58.2]} 3... cxd4 {[%clk
0:02:58.8]} 4. Nxd4 {[%clk 0:02:59.1]} 4... e5 {[%clk 0:02:58.4]} 5. Nb5 {[%clk
0:02:58.9]} 5... a6 {[%clk 0:02:58.5]} 6. Nd6+ {[%clk 0:02:58.8]} 6... Bxd6
{[%clk 0:02:58.4]} 7. Qxd6 {[%clk 0:02:59.6]} 7... Qe7 {[%clk 0:02:58.5]} 8. Qd1
{[%clk 0:02:52.5]} 8... Nf6 {[%clk 0:02:57.1]} 9. Nc3 {[%clk 0:02:51.9]} 9... d6
{[%clk 0:02:57.1]} 10. Be3 {[%clk 0:02:47.4]} 10... Be6 {[%clk 0:02:56.5]} 11.
Nd5 {[%clk 0:02:45.9]} 11... Bxd5 {[%clk 0:02:55.2]} 12. exd5 {[%clk 0:02:46.8]}
12... Nb8 {[%clk 0:02:55.1]} 13. c4 {[%clk 0:02:44.8]} 13... Nbd7 {[%clk
0:02:54.8]} 14. Be2 {[%clk 0:02:43.5]} 14... Rc8 {[%clk 0:02:54.5]} 15. O-O
{[%clk 0:02:42.1]} 15... O-O {[%clk 0:02:54.1]} 16. b4 {[%clk 0:02:39.1]} 16...
Rfe8 {[%clk 0:02:45]} 17. Rc1 {[%clk 0:02:38.2]} 17... Nf8 {[%clk 0:02:44.7]}
18. c5 {[%clk 0:02:32.5]} 18... dxc5 {[%clk 0:02:38.9]} 19. bxc5 {[%clk
0:02:22]} 19... Ne4 {[%clk 0:02:34]} 20. d6 {[%clk 0:02:19.4]} 20... Qd7 {[%clk
0:02:32.9]} 21. Qd5 {[%clk 0:02:12.9]} 21... Nf6 {[%clk 0:02:29.4]} 22. Qb3
{[%clk 0:02:12.4]} 22... Ne6 {[%clk 0:02:27.7]} 23. Rfd1 {[%clk 0:02:06.7]}
23... Qc6 {[%clk 0:02:16.1]} 24. h3 {[%clk 0:01:52.2]} 24... Kh8 {[%clk
0:02:12]} 25. Bf3 {[%clk 0:01:48.3]} 25... e4 {[%clk 0:02:10.4]} 26. Be2 {[%clk
0:01:49]} 26... Nd7 {[%clk 0:02:06.9]} 27. Rd5 {[%clk 0:01:24.1]} 27... f6
{[%clk 0:01:35.4]} 28. Bg4 {[%clk 0:01:09.7]} 28... Ne5 {[%clk 0:01:32.6]} 29.
Rxe5 {[%clk 0:01:07.5]} 29... fxe5 {[%clk 0:01:30.9]} 30. Bxe6 {[%clk
0:01:08.1]} 30... Rb8 {[%clk 0:01:21.4]} 31. Bd5 {[%clk 0:01:07.5]} 31... Qd7
{[%clk 0:01:17.6]} 32. Bxe4 {[%clk 0:00:58.1]} 32... b6 {[%clk 0:01:15.2]} 33.
cxb6 {[%clk 0:00:54.3]} 33... Qxd6 {[%clk 0:01:15.3]} 34. b7 {[%clk 0:00:53.9]}
1-0

[Event "Early-Titled-Tuesday-Blitz-April-23-2024"]
[Site "Chess.com"]
[Date "2024.04.23"]
[Round "1"]
[White "DanielDardha2005"]
[Black "GM4life"]
[Result "0-1"]
[WhiteElo "2863"]
[BlackElo "2512"]
[TimeControl "180+1"]
[EndTime "8:05:28 PDT"]
[Termination "GM4life won by checkmate"]

1. d4 {[%clk 0:03:00.1]} 1... Nf6 {[%clk 0:02:59.4]} 2. Nf3 {[%clk 0:02:59.4]}
2... g6 {[%clk 0:02:58]} 3. c4 {[%clk 0:02:58]} 3... Bg7 {[%clk 0:02:58.6]} 4.
Nc3 {[%clk 0:02:57.5]} 4... O-O {[%clk 0:02:59.5]} 5. e4 {[%clk 0:02:57.6]} 5...
d6 {[%clk 0:03:00.2]} 6. Bd3 {[%clk 0:02:54.8]} 6... c5 {[%clk 0:02:56.4]} 7. d5
{[%clk 0:02:54.9]} 7... a6 {[%clk 0:02:56.2]} 8. a4 {[%clk 0:02:54.3]} 8... e6
{[%clk 0:02:55.2]} 9. O-O {[%clk 0:02:54]} 9... exd5 {[%clk 0:02:55.5]} 10. exd5
{[%clk 0:02:54.9]} 10... Re8 {[%clk 0:02:54.6]} 11. h3 {[%clk 0:02:55]} 11...
Nbd7 {[%clk 0:02:54.7]} 12. Bf4 {[%clk 0:02:54.8]} 12... Qc7 {[%clk 0:02:48.2]}
13. Qd2 {[%clk 0:02:51.6]} 13... Ne5 {[%clk 0:02:45.1]} 14. Nxe5 {[%clk
0:02:46.2]} 14... dxe5 {[%clk 0:02:46]} 15. Bh2 {[%clk 0:02:46.8]} 15... Bd7
{[%clk 0:02:43]} 16. a5 {[%clk 0:02:46.5]} 16... Rad8 {[%clk 0:02:41.5]} 17.
Rfe1 {[%clk 0:02:44.9]} 17... Nh5 {[%clk 0:02:39.9]} 18. Bf1 {[%clk 0:02:38.3]}
18... f5 {[%clk 0:02:39.4]} 19. Na4 {[%clk 0:02:27.7]} 19... Bxa4 {[%clk
0:02:38.5]} 20. Rxa4 {[%clk 0:02:26.9]} 20... Qd7 {[%clk 0:02:22.8]} 21. Ra3
{[%clk 0:02:21.7]} 21... e4 {[%clk 0:02:17.1]} 22. b4 {[%clk 0:02:19.7]} 22...
cxb4 {[%clk 0:02:10.7]} 23. Qxb4 {[%clk 0:02:20.6]} 23... f4 {[%clk 0:02:10.1]}
24. c5 {[%clk 0:02:18.1]} 24... Kh8 {[%clk 0:02:02.2]} 25. d6 {[%clk 0:02:17]}
25... Qc6 {[%clk 0:01:53.2]} 26. Qb6 {[%clk 0:02:12.1]} 26... Qd5 {[%clk
0:01:45.1]} 27. Rb3 {[%clk 0:01:50.1]} 27... Bd4 {[%clk 0:01:31.3]} 28. Qxb7
{[%clk 0:01:41.2]} 28... Bxf2+ {[%clk 0:01:28.6]} 29. Kxf2 {[%clk 0:01:41.2]}
29... Qxc5+ {[%clk 0:01:25.6]} 30. Ree3 {[%clk 0:01:30.6]} 30... fxe3+ {[%clk
0:01:23.4]} 31. Rxe3 {[%clk 0:01:26.3]} 31... Rf8+ {[%clk 0:01:23.2]} 32. Ke2
{[%clk 0:01:26.8]} 32... Qc2+ {[%clk 0:01:22.6]} 33. Ke1 {[%clk 0:01:27.4]}
33... Qc1+ {[%clk 0:01:22.6]} 34. Ke2 {[%clk 0:01:25.9]} 34... Qxf1+ {[%clk
0:01:20.7]} 35. Kd2 {[%clk 0:01:26.5]} 35... Rf2+ {[%clk 0:01:16.6]} 36. Kc3
{[%clk 0:01:26.5]} 36... Qc1+ {[%clk 0:01:16.5]} 37. Kd4 {[%clk 0:01:27]} 37...
Qd2+ {[%clk 0:01:09.7]} 38. Kxe4 {[%clk 0:01:22.6]} 38... Re8+ {[%clk
0:01:09.1]} 39. Be5+ {[%clk 0:01:12.5]} 39... Rxe5+ {[%clk 0:01:08.6]} 40. Kxe5
{[%clk 0:01:12.5]} 40... Qxe3+ {[%clk 0:01:09.2]} 41. Kd5 {[%clk 0:01:11.6]}
41... Nf6+ {[%clk 0:01:05]} 42. Kc6 {[%clk 0:01:10]} 42... Rc2# {[%clk
0:01:03.3]} 0-1

[Event "Early-Titled-Tuesday-Blitz-April-23-2024"]
[Site "Chess.com"]
[Date "2024.04.23"]
[Round "1"]
[White "Bilan_Danila"]
[Black "MagnusCarlsen"]
[Result "0-1"]
[WhiteElo "2557"]
[BlackElo "3218"]
[TimeControl "180+1"]
[EndTime "8:05:30 PDT"]
[Termination "MagnusCarlsen won by resignation"]

1. d4 {[%clk 0:02:59.4]} 1... Nf6 {[%clk 0:02:53.7]} 2. Nf3 {[%clk 0:02:58.6]}
2... b5 {[%clk 0:02:52.2]} 3. e3 {[%clk 0:02:57.3]} 3... a6 {[%clk 0:02:52.3]}
4. c4 {[%clk 0:02:55.8]} 4... bxc4 {[%clk 0:02:52.6]} 5. Bxc4 {[%clk 0:02:56.7]}
5... e6 {[%clk 0:02:53.4]} 6. O-O {[%clk 0:02:52.8]} 6... d5 {[%clk 0:02:49.3]}
7. Bd3 {[%clk 0:02:49.5]} 7... c5 {[%clk 0:02:49.8]} 8. dxc5 {[%clk 0:02:41.1]}
8... Bxc5 {[%clk 0:02:49.5]} 9. b3 {[%clk 0:02:41.7]} 9... O-O {[%clk
0:02:49.3]} 10. Bb2 {[%clk 0:02:40.3]} 10... Nbd7 {[%clk 0:02:50]} 11. Nc3
{[%clk 0:02:38.5]} 11... Bb7 {[%clk 0:02:48.8]} 12. Na4 {[%clk 0:02:35]} 12...
Bd6 {[%clk 0:02:49]} 13. Nd4 {[%clk 0:02:09]} 13... Qb8 {[%clk 0:02:44.3]} 14.
f4 {[%clk 0:01:58]} 14... Rc8 {[%clk 0:02:39.1]} 15. Qe2 {[%clk 0:01:48.3]}
15... Qa7 {[%clk 0:02:38.9]} 16. Rac1 {[%clk 0:01:40.8]} 16... Nc5 {[%clk
0:02:38.8]} 17. Nxc5 {[%clk 0:01:31.9]} 17... Bxc5 {[%clk 0:02:39.2]} 18. Rc2
{[%clk 0:01:27.8]} 18... Qb6 {[%clk 0:02:33.5]} 19. Rfc1 {[%clk 0:01:25.1]}
19... a5 {[%clk 0:02:34.2]} 20. a4 {[%clk 0:00:49.1]} 20... h6 {[%clk
0:02:30.3]} 21. h3 {[%clk 0:00:44.5]} 21... Bf8 {[%clk 0:02:26.3]} 22. Rxc8
{[%clk 0:00:35.4]} 22... Rxc8 {[%clk 0:02:26.3]} 23. Rxc8 {[%clk 0:00:35.9]}
23... Bxc8 {[%clk 0:02:27.2]} 24. Nb5 {[%clk 0:00:36.1]} 24... Bc5 {[%clk
0:02:21.7]} 25. Bd4 {[%clk 0:00:27.2]} 25... Ba6 {[%clk 0:02:18.9]} 26. Qc2
{[%clk 0:00:21.7]} 26... Bxd4 {[%clk 0:02:14.4]} 27. Nxd4 {[%clk 0:00:20.7]}
27... Bxd3 {[%clk 0:02:14.2]} 28. Qxd3 {[%clk 0:00:21.6]} 28... Qb4 {[%clk
0:02:12]} 29. Nc2 {[%clk 0:00:15.8]} 29... Qc5 {[%clk 0:02:10.6]} 30. Kh2 {[%clk
0:00:14.2]} 30... Ne4 {[%clk 0:02:10.8]} 31. Nd4 {[%clk 0:00:07.5]} 31... Qc1
{[%clk 0:02:10]} 32. Qe2 {[%clk 0:00:05.4]} 32... Qb1 {[%clk 0:02:02.7]} 33. f5
{[%clk 0:00:05.7]} 33... e5 {[%clk 0:01:58.7]} 34. Nf3 {[%clk 0:00:06.3]} 34...
Qxb3 {[%clk 0:01:58.8]} 35. Nxe5 {[%clk 0:00:06.6]} 35... Qb8 {[%clk 0:01:59]}
36. Qb2 {[%clk 0:00:03.1]} 36... Qxb2 {[%clk 0:01:58.4]} 0-1

[Event "Early-Titled-Tuesday-Blitz-April-23-2024"]
[Site "Chess.com"]
[Date "2024.04.23"]
[Round "1"]
[White "frederiksvane"]
[Black "Itay121"]
[Result "1-0"]
[WhiteElo "3034"]
[BlackElo "2543"]
[TimeControl "180+1"]
[EndTime "8:05:31 PDT"]
[Termination "frederiksvane won by resignation"]

1. Nf3 {[%clk 0:03:00.9]} 1... d5 {[%clk 0:02:58.4]} 2. g3 {[%clk 0:03:01.3]}
2... Nd7 {[%clk 0:02:53]} 3. d4 {[%clk 0:02:59.1]} 3... Ngf6 {[%clk 0:02:52.2]}
4. Nc3 {[%clk 0:02:49.3]} 4... e6 {[%clk 0:02:48.7]} 5. Bg2 {[%clk 0:02:48.9]}
5... c5 {[%clk 0:02:47.4]} 6. O-O {[%clk 0:02:48.2]} 6... Be7 {[%clk 0:02:44.4]}
7. Re1 {[%clk 0:02:28.6]} 7... O-O {[%clk 0:02:42.4]} 8. e4 {[%clk 0:02:27.9]}
8... dxe4 {[%clk 0:02:40.6]} 9. Nxe4 {[%clk 0:02:28.3]} 9... Nxe4 {[%clk
0:02:40.8]} 10. Rxe4 {[%clk 0:02:29.2]} 10... Nf6 {[%clk 0:02:40.4]} 11. Re1
{[%clk 0:02:29.6]} 11... cxd4 {[%clk 0:02:17.6]} 12. Nxd4 {[%clk 0:02:30.5]}
12... Nd5 {[%clk 0:02:11.2]} 13. c4 {[%clk 0:02:27.4]} 13... Nb6 {[%clk
0:02:09.2]} 14. b3 {[%clk 0:02:24.9]} 14... Bf6 {[%clk 0:02:09.3]} 15. Be3
{[%clk 0:02:24.4]} 15... e5 {[%clk 0:02:05.1]} 16. Nb5 {[%clk 0:02:22.3]} 16...
a6 {[%clk 0:01:45.9]} 17. Qxd8 {[%clk 0:02:16.6]} 17... Bxd8 {[%clk 0:01:46.8]}
18. Nd6 {[%clk 0:02:16.9]} 18... Rb8 {[%clk 0:01:28.9]} 19. Nxc8 {[%clk
0:02:10.2]} 19... Nxc8 {[%clk 0:01:26.2]} 20. Red1 {[%clk 0:02:04.4]} 20... Bf6
{[%clk 0:01:20.8]} 21. Rd7 {[%clk 0:02:01]} 21... b5 {[%clk 0:01:15.3]} 22. c5
{[%clk 0:02:01.4]} 22... Ne7 {[%clk 0:01:10]} 23. c6 {[%clk 0:01:55.2]} 23...
Nf5 {[%clk 0:01:05.1]} 24. c7 {[%clk 0:01:47.5]} 24... Rbc8 {[%clk 0:01:05.2]}
25. Bb7 {[%clk 0:01:43.6]} 25... Nd4 {[%clk 0:01:04.8]} 26. Bxd4 {[%clk
0:01:41.2]} 26... exd4 {[%clk 0:01:04.5]} 27. Bxc8 {[%clk 0:01:40.8]} 27... Rxc8
{[%clk 0:01:05.4]} 28. Kf1 {[%clk 0:01:26.4]} 28... Kf8 {[%clk 0:01:05.5]} 29.
Re1 {[%clk 0:01:26.3]} 29... d3 {[%clk 0:00:56.8]} 30. Re3 {[%clk 0:01:23.4]}
30... d2 {[%clk 0:00:55.6]} 31. Ke2 {[%clk 0:01:23.7]} 31... b4 {[%clk
0:00:47.1]} 32. Kxd2 {[%clk 0:01:23.4]} 32... a5 {[%clk 0:00:46.5]} 33. Kd3
{[%clk 0:01:21.6]} 33... g6 {[%clk 0:00:46.6]} 34. Kc4 {[%clk 0:01:21.5]} 34...
h5 {[%clk 0:00:44]} 35. Kb5 {[%clk 0:01:21.4]} 35... Ra8 {[%clk 0:00:42.1]} 36.
Kb6 {[%clk 0:01:20.8]} 36... Bd4+ {[%clk 0:00:41.1]} 37. Rxd4 {[%clk 0:01:20.9]}
1-0

[Event "Early-Titled-Tuesday-Blitz-April-23-2024"]
[Site "Chess.com"]
[Date "2024.04.23"]
[Round "1"]
[White "Grossboss19"]
[Black "SpongeBob_03"]
[Result "1-0"]
[WhiteElo "2618"]
[BlackElo "2266"]
[TimeControl "180+1"]
[EndTime "8:05:31 PDT"]
[Termination "Grossboss19 won by resignation"]

1. Nf3 {[%clk 0:02:59.8]} 1... Nf6 {[%clk 0:02:41.7]} 2. d4 {[%clk 0:02:57.5]}
2... d5 {[%clk 0:02:40.1]} 3. g3 {[%clk 0:02:52.9]} 3... e6 {[%clk 0:02:35.1]}
4. Bg2 {[%clk 0:02:52.6]} 4... b6 {[%clk 0:02:34.4]} 5. O-O {[%clk 0:02:52.5]}
5... Bb7 {[%clk 0:02:34.8]} 6. c4 {[%clk 0:02:50.6]} 6... Nbd7 {[%clk
0:02:34.9]} 7. Ne5 {[%clk 0:02:49.3]} 7... Bd6 {[%clk 0:02:31.3]} 8. f4 {[%clk
0:02:44.4]} 8... Ne4 {[%clk 0:02:28]} 9. Nc3 {[%clk 0:02:34.9]} 9... Ndf6 {[%clk
0:02:24.2]} 10. Qa4+ {[%clk 0:02:29.9]} 10... Ke7 {[%clk 0:02:02]} 11. f5 {[%clk
0:02:23.1]} 11... Qe8 {[%clk 0:01:44.8]} 12. Qc2 {[%clk 0:02:22.3]} 12... Nxc3
{[%clk 0:01:34.3]} 13. bxc3 {[%clk 0:02:19.1]} 13... Kf8 {[%clk 0:01:09.8]} 14.
Bg5 {[%clk 0:01:51.1]} 14... Bxe5 {[%clk 0:00:59.4]} 15. dxe5 {[%clk 0:01:47.7]}
15... Ne4 {[%clk 0:00:59.7]} 16. Bxe4 {[%clk 0:01:35.7]} 16... dxe4 {[%clk
0:00:58.9]} 17. f6 {[%clk 0:01:35.8]} 17... Qc6 {[%clk 0:00:35.4]} 18. fxg7+
{[%clk 0:01:33.5]} 18... Kxg7 {[%clk 0:00:34.2]} 19. Bf6+ {[%clk 0:01:33.3]}
19... Kg8 {[%clk 0:00:31.5]} 20. e3 {[%clk 0:01:28.3]} 20... Qc5 {[%clk
0:00:20.3]} 21. Qe2 {[%clk 0:01:26.7]} 21... h5 {[%clk 0:00:18.3]} 22. Bxh8
{[%clk 0:01:22.6]} 1-0

[Event "Early-Titled-Tuesday-Blitz-April-23-2024"]
[Site "Chess.com"]
[Date "2024.04.23"]
[Round "1"]
[White "JonasEilenberg"]
[Black "lagedema"]
[Result "1-0"]
[WhiteElo "2753"]
[BlackElo "2433"]
[TimeControl "180+1"]
[EndTime "8:05:32 PDT"]
[Termination "JonasEilenberg won by resignation"]

1. d4 {[%clk 0:03:00.9]} 1... Nf6 {[%clk 0:02:52.7]} 2. c4 {[%clk 0:03:01.4]}
2... e6 {[%clk 0:02:52.3]} 3. Nc3 {[%clk 0:03:01.8]} 3... Bb4 {[%clk 0:02:52]}
4. Qc2 {[%clk 0:03:02.2]} 4... b6 {[%clk 0:02:51.6]} 5. e4 {[%clk 0:03:02.3]}
5... Bb7 {[%clk 0:02:46.7]} 6. Bd3 {[%clk 0:03:02]} 6... c5 {[%clk 0:02:41.2]}
7. d5 {[%clk 0:03:02.1]} 7... b5 {[%clk 0:02:33.6]} 8. dxe6 {[%clk 0:02:43.4]}
8... dxe6 {[%clk 0:02:26.9]} 9. cxb5 {[%clk 0:02:34.8]} 9... O-O {[%clk
0:02:19.5]} 10. Ne2 {[%clk 0:02:34.2]} 10... c4 {[%clk 0:02:10.7]} 11. Bxc4
{[%clk 0:02:33.9]} 11... Nxe4 {[%clk 0:02:10.5]} 12. O-O {[%clk 0:02:31.4]}
12... Nxc3 {[%clk 0:02:02.8]} 13. bxc3 {[%clk 0:02:31.7]} 13... Bd6 {[%clk
0:02:00.8]} 14. Rd1 {[%clk 0:02:24.4]} 14... Bxh2+ {[%clk 0:01:58]} 15. Kxh2
{[%clk 0:02:24]} 15... Qh4+ {[%clk 0:01:58.7]} 16. Kg1 {[%clk 0:02:23.8]} 16...
Qxc4 {[%clk 0:01:59.6]} 17. Qd3 {[%clk 0:02:17.2]} 17... Qxd3 {[%clk 0:01:57.7]}
18. Rxd3 {[%clk 0:02:18.1]} 18... Bd5 {[%clk 0:01:53.2]} 19. a4 {[%clk
0:02:03.8]} 19... Nd7 {[%clk 0:01:50.4]} 20. Ba3 {[%clk 0:02:01]} 20... Rfd8
{[%clk 0:01:36.7]} 21. Nf4 {[%clk 0:01:57.2]} 21... Ne5 {[%clk 0:01:34.4]} 22.
Rd4 {[%clk 0:01:45.6]} 22... Bb3 {[%clk 0:01:26.3]} 23. Rb1 {[%clk 0:01:41.6]}
23... Bc2 {[%clk 0:01:14.7]} 24. Rb2 {[%clk 0:01:42]} 24... Bf5 {[%clk
0:00:55.7]} 25. Rbd2 {[%clk 0:01:41.8]} 25... Rxd4 {[%clk 0:00:54.9]} 26. Rxd4
{[%clk 0:01:42.7]} 26... Rc8 {[%clk 0:00:53.6]} 27. Bc5 {[%clk 0:01:42.5]} 27...
Bc2 {[%clk 0:00:49.1]} 28. Bxa7 {[%clk 0:01:38.7]} 28... g5 {[%clk 0:00:41.3]}
29. Nh5 {[%clk 0:01:33.5]} 29... Ra8 {[%clk 0:00:24.9]} 30. b6 {[%clk
0:01:29.2]} 30... Nc6 {[%clk 0:00:25]} 31. b7 {[%clk 0:01:24.8]} 31... Rxa7
{[%clk 0:00:24]} 32. b8=Q+ {[%clk 0:01:25]} 1-0